{"text_format":"1","workbook":"xlsx","n_sheets":4,"sheets":["ФинЧасть","Письмо","Данные","Формулы"],"not_rendered":{"charts":0,"images":0,"macros":1,"external_links":0,"defined_names":2,"comments":0,"pivot_tables":0},"unopened":[],"bounds":{"document_bytes":16777216,"sheet_cells":100000,"rows_first":2000,"rows_last":500,"rows_between":2000,"halvings":0,"cell_chars":16384,"cell_head_chars":4096},"cells_cut":0,"cells_raw":0,"read":"whole","date_system":"1900"}

{"sheet":"ФинЧасть","index":0,"n_rows":11,"n_cols":7,"rows_kept":11,"cut":false,"hidden":true,"merged":[[6,0,6,3],[7,0,7,3],[8,0,8,3],[9,0,9,3],[10,0,10,3],[5,0,5,3],[0,0,0,3],[1,0,1,3],[2,0,2,3],[3,0,3,3],[4,0,4,3]]}
["Командировка продавца-кассира с 04.06 по 19.06 Елена Бузмакова 8-900-375-86-64 (Ср 30000) ЕКБ Белинского В ФОТ для бюджета на выезд (Ср.ЗП)*1,5 =45000+ндфл 2243 (за месячную норму часов+переработки)"]
["Командировка ЗУМ с 04.06 по 19.06 Ксения Распопина 8-922-210-34-46 (Ср 39000) ЕКБ Белинского В ФОТ для бюджета на выезд (Ср.ЗП)*1,5 =58500+ндфл 2550 (за месячную норму часов+переработки)"]
["Командировка продавца с ... по ... Крокодилов Сергей Иванович 8-900-041-65-94(Ср 29100), ЕКБ Гранат, В ФОТ для бюджета на выезд (Ср.ЗП)*1,5=43650+ндфл 2243 руб (за месячную норму часов+переработки)"]
["Командировка Ст. кладовщик с 27.05 по 17.06 Фазилов Илья Ибрагимович 8-963-446-15-63(Ср 31500), ЕКБ Грибоедова, В ФОТ для бюджета на выезд (Ср.ЗП)*1,5=47250+ндфл 2691 руб (за месячную норму часов+переработки)"]
["Командировка кладовщик с ... по ... Грачев Игорь Михайлович 8-977-287-21-88(Ср 34900), МСК Мытищи Селезнева, В ФОТ для бюджета на выезд (Ср.ЗП)*1,5=52350+ндфл 1950 руб (за месячную норму часов+переработки)"]
["Командировка ЗУМ с 27.05 по 17.06 Давыдова Наталья Игоревна 8-901-71-51-499(Ср 48500) МСК Одинцово В ФОТ для бюджета на выезд Ср.ЗП*1,5 =72750+ндфл 2845 руб(за месячную норму часов+переработки) "]
["Командировка Ст. кассира с 08.06 по 17.06 Бондаренко Александра Леонидовна 8-982-649-60-66(Ср 32000) ЕКБ Гранат В ФОТ для бюджета на выезд Ср.ЗП*1,5 =24000+ндфл 2550(за 88 часов)",null,null,null,null,88,{"$f":"32000*F7/176*1.5","v":24000}]
["Командировка Ст. кассира с 25.08 по 08.09 Шелковникова Татьяна Павловна 8-919-766-50-10(Ср 42530) МСК Раменское Михалевича В ФОТ для бюджета на выезд Ср.ЗП*1,5 = 55821 + ндфл 2600(за 154 час)",null,null,null,14,{"$f":"E8*11","v":154},{"$f":"42530*F8/176*1.5","v":55820.625}]
["Командировка Ст. кассира с 04.06 по 17.06 Татьяна Храмова 8-982-611-41-75 (Ср 32000) ЕКБ Белинского В ФОТ для бюджета на выезд (Ср.ЗП)*1,5 =18000+ндфл 2550(за 66 часов)",null,null,null,null,66,{"$f":"32000*F9/176*1.5","v":18000}]
["Командировка ЗУМ с 04.06 по 19.06 Ильиных Евгений 8-982-638-62-01 (Ср 39000 ) ЕКБ Мегаполис В ФОТ для бюджета на выезд (Ср.ЗП)*1,5 =58500+ндфл 2550  (за месячную норму часов+переработки)"]
["Командировка ЗУМ с 04.06 по 19.06 Никита Ячменников 8-908-919-25-31 (Ср 39000) ЕКБ Бабушкина В ФОТ для бюджета на выезд (Ср.ЗП)*1,5 =58500+ндфл 2550 (за месячную норму часов+переработки)"]

{"sheet":"Письмо","index":1,"n_rows":4,"n_cols":2,"rows_kept":4,"cut":false,"hidden":false,"merged":[]}
[]
[]
["ТЕКСТ",{"$f":"Формулы!A30","v":"Уважаемые Управляющие, довожу до вашего сведения о предстоящей командировке ваших сотрудников:\n\nПетров Петр с 15.01 по 08.02       direktor-179 \nГрачев Грач с 15.01 по 08.02       direktor-191 \n\nДаты указаны без учета затраченного времени на дорогу к месту командировки и возвращения из нее: только даты приезда на проект и отъезда с него. Точную дату выезда в командировку и дату возвращения из нее Ваш сотрудник предоставит после покупки билетов.\nНеобходимо учесть данный интервал дат при составлении табеля рабочего времени в Вашем магазине: один день до и два дня после обязательные выходные!\n\nПрошу подтвердить получение данного письма."}]
[null," "]

{"sheet":"Данные","index":2,"n_rows":28,"n_cols":13,"rows_kept":28,"cut":false,"hidden":false,"merged":[]}
["№","ФИО","Должность","Телефон","Город","email","Начало\n","Конец\n","ЗП","Коэф","Команд.\nЗП","НДФЛ"]
[{"$f":"ROW(2:2)-1","v":1},"Петров Петр","ЗУМ","8-888-111","Саратов","direktor-179","15.01","08.02",33,1.5,{"$f":"I2*J2","v":49.5},2]
[2,"Иванов Иван","ЗУМ","8-888-112","Самара","direktor-180",null,null,42,1.5,{"$f":"I3*J3","v":63},28]
[3,"Сидоров Сидр","ПК","8-888-113","Самара","direktor-181",null,null,22,1.5,{"$f":"I4*J4","v":33},3]
[4,"Василий Алибабаевич","ЗУМ","8-888-114","Пушкин","direktor-182",null,null,32,1.5,48,3]
[5,"Доцент","БОСС","8-888-115","Пушкино","direktor-183",null,null,322,1.5,483,22]
[6,"Котов Кот","ЗУМ","8-888-116","Екатеринбург","direktor-184",null,null,45,1.5,{"$f":"I7*J7","v":67.5},27]
[7,"Смиронов Смирн","ПК","8-888-117","Челябинск","direktor-185",null,null,30,1.5,{"$f":"I8*J8","v":45},15]
[8,"ВАКАНТ",null,"8-888-118",null,"direktor-186"]
[9,"ВАКАНТ",null,"8-888-119",null,"direktor-187"]
[10,"Вика","ПК","8-888-120","Новосибирск","direktor-188",null,null,43,1.5,{"$f":"I11*J11","v":64.5},21]
[11,"Светлогор","ЗУМ","8-888-121","Новокузнецк","direktor-189",null,null,55,1.5,{"$f":"I12*J12","v":82.5},2]
[12,"ВАКАНТ",null,"8-888-122",null,"direktor-190"]
[13,"Грачев Грач","Кладовщик","8-888-123","Москва","direktor-191","15.01","08.02",46,1.5,{"$f":"I14*J14","v":69},2]
[14,"Карпов Карп",null,"8-888-124",null,"direktor-192",null,null,26,1.5,{"$f":"I15*J15","v":39},2]
[15,"ВАКАНТ",null,"8-888-125",null,"direktor-193"]
[16,"ВАКАНТ",null,"8-888-126",null,"direktor-194"]
[17,"ВАКАНТ",null,"8-888-127",null,"direktor-195"]
[18,"Митя","Ст. кладовщик","8-888-128","С.-Петербург","direktor-196",null,null,40,1.5,{"$f":"I19*J19","v":60},2]
[19,"Настя","Ст. кладовщик","8-888-129","Екатеринбург","direktor-197",null,null,41,1.5,61.5,22]
[20,"Коля","Ст.кладовщик","8-888-130","Москва","direktor-198",null,null,39,1.5,58.5,2]
[21,"Игорь","Ст.кладовщик","8-888-131","Москва","direktor-199",null,null,24,1.5,36,3]
[22,"Викор","Кладовщик","8-888-132","Тагил","direktor-200",null,null,35,1.5,52.5,1.7]
[23,"Дима","ст.кладовщик","8-888-133","Томск","direktor-201",null,null,25,1.5,37.5,2]
[24,"Саша","ст.кладовщик","8-888-134","Ставрополь","direktor-202",null,null,14,1.5,21,3]
[null,null,null,null,null,null,null,null,null,{"$f":"IF(M26<0,0,#REF!)","v":0},{"$f":"I26*1.5/176*J26","v":0},null,{"$f":"H26-G26-1","v":-1}]
[null,null,null,null,null,null,null,null,null,{"$f":"IF(M27<0,0,#REF!)","v":0},{"$f":"I27*1.5/176*J27","v":0},null,{"$f":"H27-G27-1","v":-1}]
[null,null,null,null,null,null,null,null,null,{"$f":"IF(M28<0,0,#REF!)","v":0},{"$f":"I28*1.5/176*J28","v":0},null,{"$f":"H28-G28-1","v":-1}]

{"sheet":"Формулы","index":3,"n_rows":56,"n_cols":24,"rows_kept":56,"cut":false,"hidden":false,"merged":[[29,0,55,0]]}
[]
[{"$f":"CONCATENATE(B2,\" \",C2,\" \",D2,\" \",E2,\" \",F2,\" \",F30,\" \",G2,H2,\", \",I2,\", \",J2,\" \",K2,L2,\" \",M2,\" \",N2,O2,\" \",P2,\" \",Q2,\" \",R2,\" \",S2,\" \",T2,\" \",U2)","v":"Командировка ЗУМ с 15.01 по  08.02, Петров Петр, 8-888-111 (ср.33 ), Саратов, в ФОТ для бюджета на выезд (Ср.ЗП)*1,5 = 49,5 + ндфл 2 руб  (за месячную норму часов+переработки)"},"Командировка",{"$f":"Данные!C2","v":"ЗУМ"},"с",{"$f":"Данные!G2","v":"15.01"},"по",{"$f":"Данные!H2","v":"08.02"},null,{"$f":"Данные!B2","v":"Петров Петр"},{"$f":"Данные!D2","v":"8-888-111"},"(ср.",{"$f":"Данные!I2","v":33},"),",{"$f":"Данные!E2","v":"Саратов"},",","в ФОТ для бюджета на выезд (Ср.ЗП)*1,5 =",{"$f":"Данные!K2","v":49.5},"+ ндфл",{"$f":"Данные!L2","v":2},"руб"," (за месячную норму часов+переработки)",null,null,{"$f":"Данные!F2","v":"direktor-179"}]
["Командировка ЗУМ с 0 по  0, Иванов Иван, 8-888-112 (ср.42 ), Самара, в ФОТ для бюджета на выезд (Ср.ЗП)*1,5 = 63 + ндфл 28 руб  (за месячную норму часов+переработки)","Командировка",{"$f":"Данные!C3","v":"ЗУМ"},"с",{"$f":"Данные!G3","v":"00:00:00"},"по",{"$f":"Данные!H3","v":"00:00:00"},null,{"$f":"Данные!B3","v":"Иванов Иван"},{"$f":"Данные!D3","v":"8-888-112"},"(ср.",{"$f":"Данные!I3","v":42},"),",{"$f":"Данные!E3","v":"Самара"},",","в ФОТ для бюджета на выезд (Ср.ЗП)*1,5 =",{"$f":"Данные!K3","v":63},"+ ндфл",{"$f":"Данные!L3","v":28},"руб"," (за месячную норму часов+переработки)",null,null,{"$f":"Данные!F3","v":"direktor-180"}]
["Командировка ПК с 0 по  0, Сидоров Сидр, 8-888-113 (ср.22 ), Самара, в ФОТ для бюджета на выезд (Ср.ЗП)*1,5 = 33 + ндфл 3 руб  (за месячную норму часов+переработки)","Командировка",{"$f":"Данные!C4","v":"ПК"},"с",{"$f":"Данные!G4","v":"00:00:00"},"по",{"$f":"Данные!H4","v":"00:00:00"},null,{"$f":"Данные!B4","v":"Сидоров Сидр"},{"$f":"Данные!D4","v":"8-888-113"},"(ср.",{"$f":"Данные!I4","v":22},"),",{"$f":"Данные!E4","v":"Самара"},",","в ФОТ для бюджета на выезд (Ср.ЗП)*1,5 =",{"$f":"Данные!K4","v":33},"+ ндфл",{"$f":"Данные!L4","v":3},"руб"," (за месячную норму часов+переработки)",null,null,{"$f":"Данные!F4","v":"direktor-181"}]
["Командировка ЗУМ с 0 по  0, Василий Алибабаевич, 8-888-114 (ср.32 ), Пушкин, в ФОТ для бюджета на выезд (Ср.ЗП)*1,5 = 48 + ндфл 3 руб  (за месячную норму часов+переработки)","Командировка",{"$f":"Данные!C5","v":"ЗУМ"},"с",{"$f":"Данные!G5","v":"00:00:00"},"по",{"$f":"Данные!H5","v":"00:00:00"},null,{"$f":"Данные!B5","v":"Василий Алибабаевич"},{"$f":"Данные!D5","v":"8-888-114"},"(ср.",{"$f":"Данные!I5","v":32},"),",{"$f":"Данные!E5","v":"Пушкин"},",","в ФОТ для бюджета на выезд (Ср.ЗП)*1,5 =",{"$f":"Данные!K5","v":48},"+ ндфл",{"$f":"Данные!L5","v":3},"руб"," (за месячную норму часов+переработки)",null,null,{"$f":"Данные!F5","v":"direktor-182"}]
["Командировка БОСС с 0 по  0, Доцент, 8-888-115 (ср.322 ), Пушкино, в ФОТ для бюджета на выезд (Ср.ЗП)*1,5 = 483 + ндфл 22 руб  (за месячную норму часов+переработки)","Командировка",{"$f":"Данные!C6","v":"БОСС"},"с",{"$f":"Данные!G6","v":"00:00:00"},"по",{"$f":"Данные!H6","v":"00:00:00"},null,{"$f":"Данные!B6","v":"Доцент"},{"$f":"Данные!D6","v":"8-888-115"},"(ср.",{"$f":"Данные!I6","v":322},"),",{"$f":"Данные!E6","v":"Пушкино"},",","в ФОТ для бюджета на выезд (Ср.ЗП)*1,5 =",{"$f":"Данные!K6","v":483},"+ ндфл",{"$f":"Данные!L6","v":22},"руб"," (за месячную норму часов+переработки)",null,null,{"$f":"Данные!F6","v":"direktor-183"}]
["Командировка ЗУМ с 0 по  0, Котов Кот, 8-888-116 (ср.45 ), Екатеринбург, в ФОТ для бюджета на выезд (Ср.ЗП)*1,5 = 67,5 + ндфл 27 руб  (за месячную норму часов+переработки)","Командировка",{"$f":"Данные!C7","v":"ЗУМ"},"с",{"$f":"Данные!G7","v":"00:00:00"},"по",{"$f":"Данные!H7","v":"00:00:00"},null,{"$f":"Данные!B7","v":"Котов Кот"},{"$f":"Данные!D7","v":"8-888-116"},"(ср.",{"$f":"Данные!I7","v":45},"),",{"$f":"Данные!E7","v":"Екатеринбург"},",","в ФОТ для бюджета на выезд (Ср.ЗП)*1,5 =",{"$f":"Данные!K7","v":67.5},"+ ндфл",{"$f":"Данные!L7","v":27},"руб"," (за месячную норму часов+переработки)",null,null,{"$f":"Данные!F7","v":"direktor-184"}]
["Командировка ПК с 0 по  0, Смиронов Смирн, 8-888-117 (ср.30 ), Челябинск, в ФОТ для бюджета на выезд (Ср.ЗП)*1,5 = 45 + ндфл 15 руб  (за месячную норму часов+переработки)","Командировка",{"$f":"Данные!C8","v":"ПК"},"с",{"$f":"Данные!G8","v":"00:00:00"},"по",{"$f":"Данные!H8","v":"00:00:00"},null,{"$f":"Данные!B8","v":"Смиронов Смирн"},{"$f":"Данные!D8","v":"8-888-117"},"(ср.",{"$f":"Данные!I8","v":30},"),",{"$f":"Данные!E8","v":"Челябинск"},",","в ФОТ для бюджета на выезд (Ср.ЗП)*1,5 =",{"$f":"Данные!K8","v":45},"+ ндфл",{"$f":"Данные!L8","v":15},"руб"," (за месячную норму часов+переработки)",null,null,{"$f":"Данные!F8","v":"direktor-185"}]
["Командировка 0 с 0 по  0, ВАКАНТ, 8-888-118 (ср.0 ), 0, в ФОТ для бюджета на выезд (Ср.ЗП)*1,5 = 0 + ндфл 0 руб  (за месячную норму часов+переработки)","Командировка",{"$f":"Данные!C9","v":0},"с",{"$f":"Данные!G9","v":"00:00:00"},"по",{"$f":"Данные!H9","v":"00:00:00"},null,{"$f":"Данные!B9","v":"ВАКАНТ"},{"$f":"Данные!D9","v":"8-888-118"},"(ср.",{"$f":"Данные!I9","v":0},"),",{"$f":"Данные!E9","v":0},",","в ФОТ для бюджета на выезд (Ср.ЗП)*1,5 =",{"$f":"Данные!K9","v":0},"+ ндфл",{"$f":"Данные!L9","v":0},"руб"," (за месячную норму часов+переработки)",null,null,{"$f":"Данные!F9","v":"direktor-186"}]
["Командировка 0 с 0 по  0, ВАКАНТ, 8-888-119 (ср.0 ), 0, в ФОТ для бюджета на выезд (Ср.ЗП)*1,5 = 0 + ндфл 0 руб  (за месячную норму часов+переработки)","Командировка",{"$f":"Данные!C10","v":0},"с",{"$f":"Данные!G10","v":"00:00:00"},"по",{"$f":"Данные!H10","v":"00:00:00"},null,{"$f":"Данные!B10","v":"ВАКАНТ"},{"$f":"Данные!D10","v":"8-888-119"},"(ср.",{"$f":"Данные!I10","v":0},"),",{"$f":"Данные!E10","v":0},",","в ФОТ для бюджета на выезд (Ср.ЗП)*1,5 =",{"$f":"Данные!K10","v":0},"+ ндфл",{"$f":"Данные!L10","v":0},"руб"," (за месячную норму часов+переработки)",null,null,{"$f":"Данные!F10","v":"direktor-187"}]
["Командировка ПК с 0 по  0, Вика, 8-888-120 (ср.43 ), Новосибирск, в ФОТ для бюджета на выезд (Ср.ЗП)*1,5 = 64,5 + ндфл 21 руб  (за месячную норму часов+переработки)","Командировка",{"$f":"Данные!C11","v":"ПК"},"с",{"$f":"Данные!G11","v":"00:00:00"},"по",{"$f":"Данные!H11","v":"00:00:00"},null,{"$f":"Данные!B11","v":"Вика"},{"$f":"Данные!D11","v":"8-888-120"},"(ср.",{"$f":"Данные!I11","v":43},"),",{"$f":"Данные!E11","v":"Новосибирск"},",","в ФОТ для бюджета на выезд (Ср.ЗП)*1,5 =",{"$f":"Данные!K11","v":64.5},"+ ндфл",{"$f":"Данные!L11","v":21},"руб"," (за месячную норму часов+переработки)",null,null,{"$f":"Данные!F11","v":"direktor-188"}]
["Командировка ЗУМ с 0 по  0, Светлогор, 8-888-121 (ср.55 ), Новокузнецк, в ФОТ для бюджета на выезд (Ср.ЗП)*1,5 = 82,5 + ндфл 2 руб  (за месячную норму часов+переработки)","Командировка",{"$f":"Данные!C12","v":"ЗУМ"},"с",{"$f":"Данные!G12","v":"00:00:00"},"по",{"$f":"Данные!H12","v":"00:00:00"},null,{"$f":"Данные!B12","v":"Светлогор"},{"$f":"Данные!D12","v":"8-888-121"},"(ср.",{"$f":"Данные!I12","v":55},"),",{"$f":"Данные!E12","v":"Новокузнецк"},",","в ФОТ для бюджета на выезд (Ср.ЗП)*1,5 =",{"$f":"Данные!K12","v":82.5},"+ ндфл",{"$f":"Данные!L12","v":2},"руб"," (за месячную норму часов+переработки)",null,null,{"$f":"Данные!F12","v":"direktor-189"}]
["Командировка 0 с 0 по  0, ВАКАНТ, 8-888-122 (ср.0 ), 0, в ФОТ для бюджета на выезд (Ср.ЗП)*1,5 = 0 + ндфл 0 руб  (за месячную норму часов+переработки)","Командировка",{"$f":"Данные!C13","v":0},"с",{"$f":"Данные!G13","v":"00:00:00"},"по",{"$f":"Данные!H13","v":"00:00:00"},null,{"$f":"Данные!B13","v":"ВАКАНТ"},{"$f":"Данные!D13","v":"8-888-122"},"(ср.",{"$f":"Данные!I13","v":0},"),",{"$f":"Данные!E13","v":0},",","в ФОТ для бюджета на выезд (Ср.ЗП)*1,5 =",{"$f":"Данные!K13","v":0},"+ ндфл",{"$f":"Данные!L13","v":0},"руб"," (за месячную норму часов+переработки)",null,null,{"$f":"Данные!F13","v":"direktor-190"}]
["Командировка Кладовщик с 15.01 по  08.02, Грачев Грач, 8-888-123 (ср.46 ), Москва, в ФОТ для бюджета на выезд (Ср.ЗП)*1,5 = 69 + ндфл 2 руб  (за месячную норму часов+переработки)","Командировка",{"$f":"Данные!C14","v":"Кладовщик"},"с",{"$f":"Данные!G14","v":"15.01"},"по",{"$f":"Данные!H14","v":"08.02"},null,{"$f":"Данные!B14","v":"Грачев Грач"},{"$f":"Данные!D14","v":"8-888-123"},"(ср.",{"$f":"Данные!I14","v":46},"),",{"$f":"Данные!E14","v":"Москва"},",","в ФОТ для бюджета на выезд (Ср.ЗП)*1,5 =",{"$f":"Данные!K14","v":69},"+ ндфл",{"$f":"Данные!L14","v":2},"руб"," (за месячную норму часов+переработки)",null,null,{"$f":"Данные!F14","v":"direktor-191"}]
["Командировка 0 с 0 по  0, Карпов Карп, 8-888-124 (ср.26 ), 0, в ФОТ для бюджета на выезд (Ср.ЗП)*1,5 = 39 + ндфл 2 руб  (за месячную норму часов+переработки)","Командировка",{"$f":"Данные!C15","v":0},"с",{"$f":"Данные!G15","v":"00:00:00"},"по",{"$f":"Данные!H15","v":"00:00:00"},null,{"$f":"Данные!B15","v":"Карпов Карп"},{"$f":"Данные!D15","v":"8-888-124"},"(ср.",{"$f":"Данные!I15","v":26},"),",{"$f":"Данные!E15","v":0},",","в ФОТ для бюджета на выезд (Ср.ЗП)*1,5 =",{"$f":"Данные!K15","v":39},"+ ндфл",{"$f":"Данные!L15","v":2},"руб"," (за месячную норму часов+переработки)",null,null,{"$f":"Данные!F15","v":"direktor-192"}]
["Командировка 0 с 0 по  0, ВАКАНТ, 8-888-125 (ср.0 ), 0, в ФОТ для бюджета на выезд (Ср.ЗП)*1,5 = 0 + ндфл 0 руб  (за месячную норму часов+переработки)","Командировка",{"$f":"Данные!C16","v":0},"с",{"$f":"Данные!G16","v":"00:00:00"},"по",{"$f":"Данные!H16","v":"00:00:00"},null,{"$f":"Данные!B16","v":"ВАКАНТ"},{"$f":"Данные!D16","v":"8-888-125"},"(ср.",{"$f":"Данные!I16","v":0},"),",{"$f":"Данные!E16","v":0},",","в ФОТ для бюджета на выезд (Ср.ЗП)*1,5 =",{"$f":"Данные!K16","v":0},"+ ндфл",{"$f":"Данные!L16","v":0},"руб"," (за месячную норму часов+переработки)",null,null,{"$f":"Данные!F16","v":"direktor-193"}]
["Командировка 0 с 0 по  0, ВАКАНТ, 8-888-126 (ср.0 ), 0, в ФОТ для бюджета на выезд (Ср.ЗП)*1,5 = 0 + ндфл 0 руб  (за месячную норму часов+переработки)","Командировка",{"$f":"Данные!C17","v":0},"с",{"$f":"Данные!G17","v":"00:00:00"},"по",{"$f":"Данные!H17","v":"00:00:00"},null,{"$f":"Данные!B17","v":"ВАКАНТ"},{"$f":"Данные!D17","v":"8-888-126"},"(ср.",{"$f":"Данные!I17","v":0},"),",{"$f":"Данные!E17","v":0},",","в ФОТ для бюджета на выезд (Ср.ЗП)*1,5 =",{"$f":"Данные!K17","v":0},"+ ндфл",{"$f":"Данные!L17","v":0},"руб"," (за месячную норму часов+переработки)",null,null,{"$f":"Данные!F17","v":"direktor-194"}]
["Командировка 0 с 0 по  0, ВАКАНТ, 8-888-127 (ср.0 ), 0, в ФОТ для бюджета на выезд (Ср.ЗП)*1,5 = 0 + ндфл 0 руб  (за месячную норму часов+переработки)","Командировка",{"$f":"Данные!C18","v":0},"с",{"$f":"Данные!G18","v":"00:00:00"},"по",{"$f":"Данные!H18","v":"00:00:00"},null,{"$f":"Данные!B18","v":"ВАКАНТ"},{"$f":"Данные!D18","v":"8-888-127"},"(ср.",{"$f":"Данные!I18","v":0},"),",{"$f":"Данные!E18","v":0},",","в ФОТ для бюджета на выезд (Ср.ЗП)*1,5 =",{"$f":"Данные!K18","v":0},"+ ндфл",{"$f":"Данные!L18","v":0},"руб"," (за месячную норму часов+переработки)",null,null,{"$f":"Данные!F18","v":"direktor-195"}]
["Командировка Ст. кладовщик с 0 по  0, Митя, 8-888-128 (ср.40 ), С.-Петербург, в ФОТ для бюджета на выезд (Ср.ЗП)*1,5 = 60 + ндфл 2 руб  (за месячную норму часов+переработки)","Командировка",{"$f":"Данные!C19","v":"Ст. кладовщик"},"с",{"$f":"Данные!G19","v":"00:00:00"},"по",{"$f":"Данные!H19","v":"00:00:00"},null,{"$f":"Данные!B19","v":"Митя"},{"$f":"Данные!D19","v":"8-888-128"},"(ср.",{"$f":"Данные!I19","v":40},"),",{"$f":"Данные!E19","v":"С.-Петербург"},",","в ФОТ для бюджета на выезд (Ср.ЗП)*1,5 =",{"$f":"Данные!K19","v":60},"+ ндфл",{"$f":"Данные!L19","v":2},"руб"," (за месячную норму часов+переработки)",null,null,{"$f":"Данные!F19","v":"direktor-196"}]
["Командировка Ст. кладовщик с 0 по  0, Настя, 8-888-129 (ср.41 ), Екатеринбург, в ФОТ для бюджета на выезд (Ср.ЗП)*1,5 = 61,5 + ндфл 22 руб  (за месячную норму часов+переработки)","Командировка",{"$f":"Данные!C20","v":"Ст. кладовщик"},"с",{"$f":"Данные!G20","v":"00:00:00"},"по",{"$f":"Данные!H20","v":"00:00:00"},null,{"$f":"Данные!B20","v":"Настя"},{"$f":"Данные!D20","v":"8-888-129"},"(ср.",{"$f":"Данные!I20","v":41},"),",{"$f":"Данные!E20","v":"Екатеринбург"},",","в ФОТ для бюджета на выезд (Ср.ЗП)*1,5 =",{"$f":"Данные!K20","v":61.5},"+ ндфл",{"$f":"Данные!L20","v":22},"руб"," (за месячную норму часов+переработки)",null,null,{"$f":"Данные!F20","v":"direktor-197"}]
["Командировка Ст.кладовщик с 0 по  0, Коля, 8-888-130 (ср.39 ), Москва, в ФОТ для бюджета на выезд (Ср.ЗП)*1,5 = 58,5 + ндфл 2 руб  (за месячную норму часов+переработки)","Командировка",{"$f":"Данные!C21","v":"Ст.кладовщик"},"с",{"$f":"Данные!G21","v":"00:00:00"},"по",{"$f":"Данные!H21","v":"00:00:00"},null,{"$f":"Данные!B21","v":"Коля"},{"$f":"Данные!D21","v":"8-888-130"},"(ср.",{"$f":"Данные!I21","v":39},"),",{"$f":"Данные!E21","v":"Москва"},",","в ФОТ для бюджета на выезд (Ср.ЗП)*1,5 =",{"$f":"Данные!K21","v":58.5},"+ ндфл",{"$f":"Данные!L21","v":2},"руб"," (за месячную норму часов+переработки)",null,null,{"$f":"Данные!F21","v":"direktor-198"}]
["Командировка Ст.кладовщик с 0 по  0, Игорь, 8-888-131 (ср.24 ), Москва, в ФОТ для бюджета на выезд (Ср.ЗП)*1,5 = 36 + ндфл 3 руб  (за месячную норму часов+переработки)","Командировка",{"$f":"Данные!C22","v":"Ст.кладовщик"},"с",{"$f":"Данные!G22","v":"00:00:00"},"по",{"$f":"Данные!H22","v":"00:00:00"},null,{"$f":"Данные!B22","v":"Игорь"},{"$f":"Данные!D22","v":"8-888-131"},"(ср.",{"$f":"Данные!I22","v":24},"),",{"$f":"Данные!E22","v":"Москва"},",","в ФОТ для бюджета на выезд (Ср.ЗП)*1,5 =",{"$f":"Данные!K22","v":36},"+ ндфл",{"$f":"Данные!L22","v":3},"руб"," (за месячную норму часов+переработки)",null,null,{"$f":"Данные!F22","v":"direktor-199"}]
["Командировка Кладовщик с 0 по  0, Викор, 8-888-132 (ср.35 ), Тагил, в ФОТ для бюджета на выезд (Ср.ЗП)*1,5 = 52,5 + ндфл 1,7 руб  (за месячную норму часов+переработки)","Командировка",{"$f":"Данные!C23","v":"Кладовщик"},"с",{"$f":"Данные!G23","v":"00:00:00"},"по",{"$f":"Данные!H23","v":"00:00:00"},null,{"$f":"Данные!B23","v":"Викор"},{"$f":"Данные!D23","v":"8-888-132"},"(ср.",{"$f":"Данные!I23","v":35},"),",{"$f":"Данные!E23","v":"Тагил"},",","в ФОТ для бюджета на выезд (Ср.ЗП)*1,5 =",{"$f":"Данные!K23","v":52.5},"+ ндфл",{"$f":"Данные!L23","v":1.7},"руб"," (за месячную норму часов+переработки)",null,null,{"$f":"Данные!F23","v":"direktor-200"}]
["Командировка ст.кладовщик с 0 по  0, Дима, 8-888-133 (ср.25 ), Томск, в ФОТ для бюджета на выезд (Ср.ЗП)*1,5 = 37,5 + ндфл 2 руб  (за месячную норму часов+переработки)","Командировка",{"$f":"Данные!C24","v":"ст.кладовщик"},"с",{"$f":"Данные!G24","v":"00:00:00"},"по",{"$f":"Данные!H24","v":"00:00:00"},null,{"$f":"Данные!B24","v":"Дима"},{"$f":"Данные!D24","v":"8-888-133"},"(ср.",{"$f":"Данные!I24","v":25},"),",{"$f":"Данные!E24","v":"Томск"},",","в ФОТ для бюджета на выезд (Ср.ЗП)*1,5 =",{"$f":"Данные!K24","v":37.5},"+ ндфл",{"$f":"Данные!L24","v":2},"руб"," (за месячную норму часов+переработки)",null,null,{"$f":"Данные!F24","v":"direktor-201"}]
["Командировка ст.кладовщик с 0 по  0, Саша, 8-888-134 (ср.14 ), Ставрополь, в ФОТ для бюджета на выезд (Ср.ЗП)*1,5 = 21 + ндфл 3 руб  (за месячную норму часов+переработки)","Командировка",{"$f":"Данные!C25","v":"ст.кладовщик"},"с",{"$f":"Данные!G25","v":"00:00:00"},"по",{"$f":"Данные!H25","v":"00:00:00"},null,{"$f":"Данные!B25","v":"Саша"},{"$f":"Данные!D25","v":"8-888-134"},"(ср.",{"$f":"Данные!I25","v":14},"),",{"$f":"Данные!E25","v":"Ставрополь"},",","в ФОТ для бюджета на выезд (Ср.ЗП)*1,5 =",{"$f":"Данные!K25","v":21},"+ ндфл",{"$f":"Данные!L25","v":3},"руб"," (за месячную норму часов+переработки)",null,null,{"$f":"Данные!F25","v":"direktor-202"}]
[]
[]
["Письмо"]
[]
[{"$f":"CONCATENATE(B30,\nB33,B34,B35,B36,B37,B38,B39,B40,B41,B42,B43,B44,B45,B46,B47,B48,B49,B50,B51,B52,B53,B54,B55,B56,\n\nB31,B32,)","v":"Уважаемые Управляющие, довожу до вашего сведения о предстоящей командировке ваших сотрудников:\n\nПетров Петр с 15.01 по 08.02       direktor-179 \nГрачев Грач с 15.01 по 08.02       direktor-191 \n\nДаты указаны без учета затраченного времени на дорогу к месту командировки и возвращения из нее: только даты приезда на проект и отъезда с него. Точную дату выезда в командировку и дату возвращения из нее Ваш сотрудник предоставит после покупки билетов.\nНеобходимо учесть данный интервал дат при составлении табеля рабочего времени в Вашем магазине: один день до и два дня после обязательные выходные!\n\nПрошу подтвердить получение данного письма."},"Уважаемые Управляющие, довожу до вашего сведения о предстоящей командировке ваших сотрудников:\n\n"]
[null,"\nДаты указаны без учета затраченного времени на дорогу к месту командировки и возвращения из нее: только даты приезда на проект и отъезда с него. Точную дату выезда в командировку и дату возвращения из нее Ваш сотрудник предоставит после покупки билетов.\nНеобходимо учесть данный интервал дат при составлении табеля рабочего времени в Вашем магазине: один день до и два дня после обязательные выходные!\n"]
[null,"\nПрошу подтвердить получение данного письма."]
[null,{"$f":"IF(AND(E2<>0,G2<>0),CONCATENATE(I2,\" \",D2,\" \",E2,\" \",F2,\" \",G2,\" \",\" \",\" \",\" \",\" \",\" \",\" \",X2,\" \",Y2,CHAR(10)),\"\")","v":"Петров Петр с 15.01 по 08.02       direktor-179 \n"}]
[null,{"$f":"IF(AND(E3<>0,G3<>0),CONCATENATE(I3,\" \",D3,\" \",E3,\" \",F3,\" \",G3,\" \",\" \",\" \",\" \",\" \",\" \",\" \",X3,\" \",Y3,CHAR(10)),\"\")","v":""}]
[null,""]
[null,""]
[null,""]
[null,""]
[null,""]
[null,""]
[null,""]
[null,""]
[null,""]
[null,""]
[null,"Грачев Грач с 15.01 по 08.02       direktor-191 \n"]
[null,""]
[null,""]
[null,""]
[null,""]
[null,""]
[null,""]
[null,""]
[null,""]
[null,""]
[null,""]
[null,""]